Cogmind - Beta 16 --- EXPLORER MODE // 2025.12.03 @ 12:14:04 Player: K.K.Y. Result: Destroyed by UT-8WU(R) with Subdweller Beam Cannon Performance ------------- Evolutions (0) 0 Regions Visited (3) 600 Robots Destroyed (45) 225 Value Destroyed (811) 811 Prototype IDs (12) 240 Alien Tech Used (0) 0 Bonus (0) 0 TOTAL SCORE: 1876 Bonus ------- None Cogmind --------- Core Integrity 0/250 Matter 295/300 Energy 49/100 System Corruption 4% Temperature Cool (48) Movement Treading (160) Location -10/Subcaves Parts ------- > --- POWER (1) -------- (None) > --- PROPULSION (2) --- Spiked Treads > --- UTILITY (3) ------ Terrain Scan Processor Terrain Scan Processor > --- WEAPON (2) ------- Riot Gun Ripper > --- INVENTORY (5) ---- Huge Storage Unit Cargo Storage Unit Terrain Scan Processor Datajack Peak State ------------ > --- POWER ------------ Ion Engine > --- PROPULSION ------- Spiked Treads > --- UTILITY ---------- Terrain Scan Processor Terrain Scan Processor > --- WEAPON ----------- Riot Gun Ripper > --- INVENTORY -------- Huge Storage Unit Cargo Storage Unit Terrain Scan Processor Datajack [Rating: 14] Favorites ----------- Power Ion Engine Engine Ion Engine Propulsion Light Treads Treads Light Treads Utility Terrain Scan Processor Device Improved Terrain Scanner Processor Terrain Scan Processor Weapon Datajack Energy Gun Small Laser Energy Cannon Beam Cannon Ballistic Cannon Battle Cannon Special Weapon Mining Laser Slashing Weapon Ripper Special Melee Weapon Datajack Build | -11 -10 -10 -10 ------- Run | Yrd Mat Min Sub Slots Evolved 1 | . 1 . . Power . | . . . . Propulsion . | . . . . Utility 1 | . 1 . . Weapon . | . . . . Parts Attached 24 | 5 12 2 5 Power 3 | . 3 . . Engine 3 | . 3 . . Core . | . . . . Reactor . | . . . . Propulsion 7 | 2 4 . 1 Treads 7 | 2 4 . 1 Leg . | . . . . Wheel . | . . . . Hover . | . . . . Flight . | . . . . Utility 7 | 1 3 2 1 Device 3 | 1 1 . 1 Storage . | . . . . Processor 4 | . 2 2 . Hackware . | . . . . Protection . | . . . . Artifact . | . . . . Weapon 7 | 2 2 . 3 Energy Gun 2 | 1 . . 1 Energy Cannon 1 | . 1 . . Ballistic Gun . | . . . . Ballistic Cannon 1 | . . . 1 Launcher . | . . . . Special Weapon 1 | 1 . . . Impact Weapon . | . . . . Slashing Weapon 1 | . . . 1 Piercing Weapon . | . . . . Special Melee Weapon 1 | . 1 . . Unidentified Prototypes . | . . . . Parts Lost 8 | . 1 2 5 Power 1 | . . . 1 Propulsion 2 | . . . 2 Utility 3 | . . 2 1 Weapon 2 | . 1 . 1 Highest Loss Streak 2 | . 1 2 1 To Critical Strikes . | . . . . Average Backups 4 | 3 4 4 4 Power . | . . . . Propulsion . | . . . . Utility 3 | 2 3 3 3 Weapon . | . . 1 . Tool/Special . | . . . . Unused Backups 9 | 1 4 . 4 Power . | . . . . Propulsion . | . . . . Utility 7 | . 4 . 3 Weapon 2 | 1 . . 1 Tool/Special . | . . . . Average Slot Usage (%) 86 | . 89 93 78 Engine 11 | . 11 12 11 Treads 19 | . 25 25 9 Device 10 | . 12 12 8 Processor 22 | . 23 18 25 Energy Cannon 7 | . 9 12 1 Ballistic Cannon 3 | . . . 8 Special Weapon 1 | . 3 . . Slashing Weapon 1 | . . . 2 Special Melee Weapon 7 | . . 12 8 Peak Build Rating 14 | 7 12 12 14 Average Rating 10 | 4 11 10 11 On Entrance 7 | . 7 12 12 Avg Prop Armor Cover (%) . | . . . . Naked Turns . | . . . . Heaviest Build 11 | 3 10 10 11 Greatest Support 40 | 40 40 40 40 Greatest Overweight (x) 3 | . . . 3 Average Overweight (x) . | . . . 1 Largest Inventory Capacity 5 | 5 5 5 5 Average Capacity 5 | 5 5 5 5 Most Carried 5 | 5 5 5 5 Average Carried 4 | 3 4 5 5 Final Capacity 5 | 5 5 5 5 Final Carried 5 | 4 5 5 5 Class Distribution -------------------- 100% | Hacker-Mutant Dominant Class ---------------- Hacker-Mutant | -10/Materials Hacker-Mutant | -10/Mines Hacker-Mutant | -10/Subcaves Resources | -11 -10 -10 -10 ----------- Run | Yrd Mat Min Sub Matter Collected 770 | 250 85 84 351 Remotely . | . . . . Salvage Created 1541 | 254 617 420 250 Parts 84 | 18 37 16 13 Haulers Intercepted 2 | . 2 . . Recyclers Shooed 2 | 1 1 . . Parts Field Recycled . | . . . . Retrieved Matter . | . . . . Parts Self-Destructed . | . . . . Prevented . | . . . . Parts Restored . | . . . . Kills | -11 -10 -10 -10 ------- Run | Yrd Mat Min Sub Combat Hostiles Destroyed 34 | . 8 16 10 Melee 4 | . . . 4 Cannons 28 | . 7 15 6 Classes Destroyed 10 | 2 5 1 2 Builder 7 | . 6 1 . Tunneler 10 | 8 . 2 . Hauler 2 | . 2 . . Recycler 4 | 1 2 1 . Watcher 2 | . 2 . . Swarmer 5 | . 2 . 3 Grunt 8 | . 6 2 . Sentry 1 | . . . 1 Subdweller 6 | . . . 6 Assembled 14 | . . 14 . Best Kill Streak 5 | 4 4 5 2 Combat Bots Only 5 | . 4 5 2 Max Kills in Single Turn 1 | 1 1 1 1 Gunslinging . | . . . . Exploded . | . . . . Melee 1 | . . . 1 Uniques/NPCs Destroyed . | . . . . Combat | -11 -10 -10 -10 -------- Run | Yrd Mat Min Sub Hostile Shots Fired 153 | . 61 40 52 Missed 29 | . 13 8 8 Hits 124 | . 48 32 44 Melee 11 | . . 11 . Projectile 113 | . 48 21 44 Critical Strikes 2 | . . . 2 Part Disruptions 2 | . . 2 . Damage Taken 1138 | . 347 323 468 Core 255 | . 91 39 125 Absorbed by Shields . | . . . . Ignored by Resistances 699 | . 218 196 285 Core Remaining (%) 100 | 100 . . . Volleys Fired 210 | 28 68 65 49 Largest 2 | 1 2 1 1 Hottest 160 | 40 160 60 60 Shots Fired 223 | 28 79 65 51 Gun 39 | 28 8 . 3 Cannon 174 | . 61 65 48 Launcher . | . . . . Special 10 | . 10 . . Kinetic 47 | . . . 47 Thermal 173 | 28 79 65 1 Explosive . | . . . . Electromagnetic 3 | . . . 3 Robot Hit Streak 42 | 28 36 27 42 Robot Miss Streak 2 | . 2 2 1 Penetration Max . | . . . . Secondary Targets . | . . . . Shots Hit Robots 194 | 28 60 60 46 Core Hits 75 | 10 23 28 14 Critical Kills 2 | . 1 1 . Critical Parts Destroyed . | . . . . Critical Strikes 5 | . 1 1 3 Meltdown 2 | . 1 1 . Blast 3 | . . . 3 Melee Attacks 12 | . . 4 8 Impact . | . . . . Slashing 7 | . . . 7 Piercing . | . . . . Sneak Attacks 4 | . . 3 1 Combat Hostiles . | . . . . Follow-up Attacks . | . . . . Damage Inflicted 3326 | 303 1035 981 1007 Guns 450 | 303 88 . 59 Cannons 2603 | . 875 981 747 Explosions . | . . . . Melee 201 | . . . 201 Ramming . | . . . . Kinetic 747 | . . . 747 Thermal 2319 | 303 1035 981 . Explosive . | . . . . Electromagnetic 59 | . . . 59 Impact . | . . . . Slashing 201 | . . . 201 Piercing . | . . . . Highest Corruption 4 | . 1 4 4 Average Corruption 3 | . 1 3 4 Corruption Purged . | . . . . Corruption Blocked . | . . . . Effects 77 | . 7 29 41 Message Errors 26 | . 3 13 10 Matter Fused 14 | . 1 4 9 Heat Flow Errors 7 | . . . 7 Energy Discharges 15 | . 1 5 9 Data Loss (minor) 8 | . 1 4 3 Data Loss (major) 3 | . . 3 . Misfires 3 | . 1 . 2 Alerts 1 | . . . 1 Overload Shots . | . . . . Overflow Damage 38 | . 5 33 . Projectiles 38 | . 5 33 . Explosions . | . . . . Melee . | . . . . Knockbacks . | . . . . Impact . | . . . . Kinetic . | . . . . Secondary . | . . . . Self-Inflicted Damage . | . . . . Shots . | . . . . Rammed . | . . . . Targets Rammed . | . . . . Kicked . | . . . . Crushed . | . . . . Highest Temperature 479 | . 479 342 248 Average Temperature 110 | . 124 94 102 Received Heat Transfer 835 | . 291 236 308 Effects 4 | . 3 1 . Shutdowns 1 | . 1 . . Energy Bleed 1 | . . 1 . Interference 1 | . 1 . . Damage (minor) 1 | . 1 . . Siege Activations . | . . . . Martial Activations . | . . . . Shielding Activations . | . . . . Robots Disrupted . | . . . . Combat Hostiles . | . . . . Robots Corrupted . | . . . . Combat Hostiles . | . . . . Parts Fried . | . . . . Impact Corruptions . | . . . . Robots Melted 2 | . 1 1 . Combat Hostiles 2 | . 1 1 . Parts Melted 11 | 1 7 3 . Heat Transferred 4972 | 700 2200 2072 . Parts Sabotaged . | . . . . Parts Stolen . | . . . . Parts Stripped . | . . . . Power Chain Reactions . | . . . . Alert | -11 -10 -10 -10 ------- Run | Yrd Mat Min Sub Maximum Alert Level . | . . . . Low Security (%) 100 | 100 100 100 . Level 1 . | . . . . Level 2 . | . . . . Level 3 . | . . . . Level 4 . | . . . . Level 5 . | . . . . High Security . | . . . . Max Security . | . . . . Peak Influence 96 | 10 96 52 . Initial . | . . . . Average 3 | 1 7 1 . Influence Increases 472 | 45 265 72 90 Destroy 0b10 Robot/C 280 | . 160 40 80 Destroy 0b10 Robot/NC 125 | 45 60 20 . Destroy Leader 58 | . 38 10 10 Allied During Kill 2 | . . 2 . Successful Hack 3 | . 3 . . Destroy Structure 4 | . 4 . . Influence Decreases 472 | 45 265 72 90 Time Decay 462 | 45 255 72 90 Lost Part 10 | . 10 . . Squads Dispatched . | . . . . Investigation . | . . . . Extermination . | . . . . Reinforcement . | . . . . Assault . | . . . . Garrison . | . . . . Intercept . | . . . . Searches Triggered . | . . . . Construction Impeded . | . . . . Haulers Reinforced . | . . . . Active Scanning Responses . | . . . . Cargo Convoy Interrupts . | . . . . Stealth | -11 -10 -10 -10 --------- Run | Yrd Mat Min Sub Distress Signals . | . . . . Communications Jammed . | . . . . Distress Signals . | . . . . Times Spotted 42 | . 14 15 13 Peak Tracking Total 4 | . 4 4 3 Tactical Retreats . | . . . . Traps | -11 -10 -10 -10 ------- Run | Yrd Mat Min Sub Traps Triggered 2 | . 2 . . Indirectly . | . . . . Trap Hack Attempts . | . . . . Triggered . | . . . . Disarmed . | . . . . Reprogrammed . | . . . . Reused . | . . . . Traps Extracted . | . . . . Installed . | . . . . Triggered . | . . . . Machines | -11 -10 -10 -10 ---------- Run | Yrd Mat Min Sub Machines Disabled . | . . . . Max in Single Turn . | . . . . Machines Repaired . | . . . . Machines Dismantled . | . . . . Machines Sabotaged . | . . . . Overloaded Fab Kills . | . . . . Hacking | -11 -10 -10 -10 --------- Run | Yrd Mat Min Sub Machines Accessed 5 | . 4 . 1 Terminals 4 | . 4 . . Fabricators . | . . . . Repair Stations . | . . . . Recycling Units . | . . . . Scanalyzers . | . . . . Garrison Access . | . . . . Total Hacks 7 | . 6 . 1 Successful 4 | . 3 . 1 Failed 3 | . 3 . . Catastrophic . | . . . . Database Lockouts . | . . . . Manual 9 | . 9 . . Terminals 6 | . 6 . . Fabricators . | . . . . Repair Stations . | . . . . Recycling Units . | . . . . Scanalyzers . | . . . . Garrison Access . | . . . . Terminal Hacks 1 | . . . 1 Proto ID Catalog 1 | . . . 1 Fabricator Hacks . | . . . . Repair Station Hacks . | . . . . Recycling Unit Hacks . | . . . . Scanalyzer . | . . . . Garrison Access Hacks . | . . . . Unauthorized Hacks 3 | . 3 . . Terminals 3 | . 3 . . Botnet 3 | . 3 . . Fabricators . | . . . . Repair Stations . | . . . . Recycling Units . | . . . . Scanalyzers . | . . . . Garrison Access . | . . . . Data Cores Recovered . | . . . . Used . | . . . . Hacking Detections 3 | . 3 . . Full Trace Events . | . . . . Feedback Events . | . . . . Feedback Blocked . | . . . . Robot Schematics Acquired . | . . . . Robots Built . | . . . . Authchips . | . . . . Time . | . . . . Total Robot Build Rating . | . . . . Part Schematics Acquired . | . . . . Parts Built . | . . . . Authchips . | . . . . Time . | . . . . Total Part Build Rating . | . . . . Part Studies Acquired . | . . . . Parts Repaired . | . . . . Time . | . . . . Parts Recycled . | . . . . Recycled Matter . | . . . . Retrieved Matter . | . . . . Retrieved Components . | . . . . Parts Scanalyzed . | . . . . Part Schematics Acquired . | . . . . Parts Damaged . | . . . . Bothacking | -11 -10 -10 -10 ------------ Run | Yrd Mat Min Sub Used RIF Installer . | . . . . Robots Hacked 1 | . . . 1 Non-combat 1 | . . . 1 Combat . | . . . . Robot Hacks Applied 1 | . . . 1 parse_system 1 | . . . 1 Relay Couplers Released . | . . . . Fabnet Peak Effective % . | . . . . Robots Rewired . | . . . . Allies Hacked . | . . . . Hacks Repelled . | . . . . Allies | -11 -10 -10 -10 -------- Run | Yrd Mat Min Sub Total Allies 3 | . . 3 . Largest Group 3 | . . 3 . Highest-Rated Group 40 | . . 40 . Highest-Rated Ally 16 | . . 16 . Total Orders . | . . . . Ally Attacks 2 | . . 2 . Total Damage 26 | . . 26 . Kills . | . . . . Allies Corrupted . | . . . . Allies Melted . | . . . . Intel | -11 -10 -10 -10 ------- Run | Yrd Mat Min Sub Active Infowar (turns) 4783 | 147 1149 1962 1525 Optics 2 | . . . 2 Terrain 4781 | 147 1149 1962 1523 Robot Analysis Total . | . . . . Derelict Logs Recovered 3 | . . 1 2 Drone Launches . | . . . . Drone Recoveries . | . . . . Exploration | -11 -10 -10 -10 ------------- Run | Yrd Mat Min Sub Turns Passed 5850 | 250 1549 1962 2089 Spaces Moved 2900 | 124 811 886 1079 Core 510 | 17 . . 493 Treads 2390 | 107 811 886 586 Legs . | . . . . Wheels . | . . . . Hover . | . . . . Flight . | . . . . Fastest Speed 50 | 50 160 160 150 Average Speed 162 | 144 160 160 169 Slowest Speed 200 | 160 160 160 200 Overloaded Moves . | . . . . Propulsion Burnouts . | . . . . Robots Hopped . | . . . . Potential Cave-ins . | . . . . Cave-ins Triggered . | . . . . Exploration Rate (%) 62 | 6 97 98 50 Regions Visited 3 Branch Regions 2 Pre-discovered Areas 2 | . . 1 1 Known Exits Taken 3 | 1 1 1 . Unknown Exits Taken . | . . . . Scrap Searched 4 | . . 1 3 Spaces Dug . | . . . . Terrain Destroyed 3 | . 3 . . Melee . | . . . . Projectile 3 | . 3 . . AOE . | . . . . Terrain Rammed . | . . . . Walls Destroyed . | . . . . Machines Disabled . | . . . . Actions | -11 -10 -10 -10 --------- Run | Yrd Mat Min Sub Total 3780 | 166 970 1363 1281 Wait 596 | . 57 407 132 Move 2897 | 123 810 885 1079 Hop . | . . . . Pick Up 21 | 9 11 . 1 Fast Attach 8 | 1 . 2 5 Attach 8 | 4 4 . . Detach . | . . . . Swap 11 | . 8 . 3 Drop 17 | 1 12 . 4 Fire 210 | 28 68 65 49 Melee 12 | . . 4 8 Ram . | . . . . Kick . | . . . . Crush . | . . . . Escape Stasis . | . . . . Rewire . | . . . . Trap . | . . . . Miscellaneous . | . . . . Route ------- -11/Scrapyard -10/Materials (discovered 6 exits: *Mat x3 / *Min x2 / *Sub) -10/Mines (discovered 4 exits: *Mat x2 / *Exi / *Sub) -10/Subcaves (discovered 1 exit: *Mat) History --------- Turn | Location | Event 10 | -11/Scrapyard | Identified exit to Materials 10 | -11/Scrapyard | Discovered exit to Materials (range 15) 251 | -11/Scrapyard | Entered Materials 251 | -10/Materials | Evolved 1 slot: Utility x1 252 | -10/Materials | Met a group of wandering Federalists 347 | -10/Materials | Build established: Hacker-Mutant 364 | -10/Materials | Identified exit to Subcaves 364 | -10/Materials | Discovered exit to Subcaves (range 8) 402 | -10/Materials | Identified exit to Materials 402 | -10/Materials | Discovered exit to Materials (range 16) 644 | -10/Materials | Identified exit to Mines 644 | -10/Materials | Discovered exit to Mines (range 16) 670 | -10/Materials | Discovered exit to Materials (range 16) 822 | -10/Materials | Discovered exit to Mines (range 13) 1147 | -10/Materials | Discovered exit to Materials (range 5) 1800 | -10/Materials | Entered Mines 1914 | -10/Mines | Assisted by bots powering up and referring to "LRC-V3" 1933 | -10/Mines | Found DCF Scrap (12 items) 2042 | -10/Mines | Discovered exit to Materials (range 5) 2111 | -10/Mines | Deemed a non-threat by the Exiles lab entrance 2111 | -10/Mines | Identified exit to Exiles 2111 | -10/Mines | Discovered exit to Exiles (range 5) 2145 | -10/Mines | Assembled infested the area 2213 | -10/Mines | Lost 3 allies 2283 | -10/Mines | Discovered exit to Materials (range 10) 2621 | -10/Mines | Discovered exit to Subcaves (range 3) 2807 | -10/Mines | Found a hidden stash of uninstalled traps 2985 | -10/Mines | Core integrity fell below 50% 3762 | -10/Mines | Entered Subcaves 3763 | -10/Subcaves | Approached by a straggling Scientist 3851 | -10/Subcaves | Shifting Twisted Machinery released Scrap Shield 3960 | -10/Subcaves | Shifting Twisted Machinery released Flamer 3974 | -10/Subcaves | Shifting Twisted Machinery released Battle Cannon 4149 | -10/Subcaves | Identified exit to Materials 4149 | -10/Subcaves | Discovered exit to Materials (range 10) 4605 | -10/Subcaves | Visited 4L-MR0's lab 4760 | -10/Subcaves | Ambushed by angry Subdweller bent on revenge 5444 | -10/Subcaves | Core integrity fell below 20% 5501 | -10/Subcaves | Learned Materials garrison access intel 5791 | -10/Subcaves | Learned location of Zion (-6) 5851 | -10/Subcaves | Destroyed by UT-8WU(R) with Subdweller Beam Cannon Last Messages --------------- 05649_ System corrupted: Heat flow error (+230). 05683_ System corrupted: Energy discharge (-70). Q7-UDC(c): "I think it's somewhere northeast of here" 05712_ Acquired Spk. Treads. 05736_ I7-NWE(R) destroyed. 05739_ Acquired 15 matter. 05740_ Z7-JDX(R) destroyed. Q7-UDC(c): "I think it's somewhere northeast of here" 05791_ Acquired derelict log, extracted data. World map updated: -6/Zion. 05796_ A8|